fUSD/lending_fUSD_20250606
["ID","MTS","AMOUNT","RATE_DAILY","PERIOD"]
[364791812,1749241917740,-3979.76,0.00030191,5]
[364791813,1749241917751,-569.59167999,0.00030191,5]
[364791814,1749241917761,-599.88,0.00030191,5]
[364791815,1749241917771,-765.24,0.00030191,5]
[364791816,1749241917781,-57460.09,0.00030191,5]
[364791817,1749241917795,-703.27,0.00030191,5]
[364791818,1749241917804,-4676.37,0.00030191,5]
[364791819,1749241917814,-2938.32,0.00030191,5]
[364791820,1749241917824,-1379.45,0.00030191,5]
[364791821,1749241917834,-7478.95,0.00030191,5]
[364791822,1749241917844,-755.4,0.00030191,5]
[364791823,1749241918388,-607.62,0.00030191,5]
[364791824,1749241918410,-1091.95,0.00030191,5]
[364791825,1749241918429,-1260.18,0.00030191,5]
[364791826,1749241918450,-949.92,0.00030191,5]
[364791827,1749241918470,-9118.0,0.00030191,5]
[364791828,1749241918487,-3373.75,0.00030191,5]
[364791829,1749241918497,-520.51,0.00030191,5]
[364791830,1749241918506,-480.0,0.00030191,5]
[364791831,1749241918516,-597.4,0.00030191,5]
[364791832,1749241918525,-1500.48,0.00030191,5]
[364791833,1749241918535,-1073.19,0.00030191,5]
[364791834,1749241918544,-2617.35,0.00030191,5]
[364791835,1749241918553,-1091.83,0.00030191,5]
[364791836,1749241918562,-1000.0,0.00030191,2]
[364791837,1749241918571,-480.0,0.00030191,5]
[364791838,1749241918580,-2954.48,0.00030191,5]
[364791839,1749241918589,-676.46,0.00030191,5]
[364791840,1749241918598,-1100.1,0.00030191,5]
[364791841,1749241918607,-774.3,0.00030191,5]
[364791842,1749241918616,-909.08,0.00030191,5]
[364791843,1749241918625,-771.25,0.00030191,5]
[364791844,1749241918634,-1341.13,0.00030191,5]
[364791845,1749241918643,-1674.49,0.00030191,5]
[364791846,1749241918652,-2363.43,0.00030191,5]
[364791847,1749241918661,-1778.5,0.00030191,5]
[364791848,1749241918670,-2094.52,0.00030191,5]
[364791849,1749241918678,-2998.55,0.00030191,5]
[364791850,1749241918688,-837.35,0.00030191,5]
[364791851,1749241918697,-1324.98,0.00030191,5]
[364791852,1749241918706,-822.69,0.00030191,5]
[364791853,1749241918715,-4354.28,0.00030191,5]
[364791854,1749241918724,-1172.56,0.00030191,5]
[364791855,1749241918733,-10833.54,0.00030191,5]
[364791856,1749241918742,-2910.79,0.00030191,5]
[364791857,1749241918751,-1425.98,0.00030191,5]
[364791858,1749241918760,-1161.29,0.00030191,5]
[364791859,1749241918769,-701.08,0.00030191,5]
[364791860,1749241918778,-725.11,0.00030191,5]
[364791861,1749241918789,-622.3,0.00030191,5]
[364791862,1749241918799,-891.78,0.00030191,5]
[364791863,1749241918807,-480.0,0.00030191,5]
[364791864,1749241918816,-1363.03,0.00030191,5]
[364791865,1749241918826,-2822.75,0.00030191,5]
[364791866,1749241918840,-3135.14,0.00030191,5]
[364791867,1749241918851,-1180.93,0.00030191,5]
[364791868,1749241918860,-931.09,0.00030191,5]
[364791869,1749241918870,-480.0,0.00030191,5]
[364791870,1749241918880,-1155.88,0.00030191,5]
[364791871,1749241918888,-1414.51,0.00030191,5]
[364791872,1749241918897,-4001.96,0.00030191,5]
[364791873,1749241918909,-552.73,0.00030191,5]
[364791874,1749241918920,-632.88,0.00030191,5]
[364791875,1749241918929,-1526.89,0.00030191,5]
[364791876,1749241918938,-1010.46,0.00030191,5]
[364791877,1749241918949,-1132.61,0.00030191,5]
[364791878,1749241918958,-533.37,0.00030191,5]
[364791879,1749241918967,-1110.02,0.00030191,5]
[364791880,1749241918976,-4560.52,0.00030191,5]
[364791881,1749241918987,-480.0,0.00030191,5]
[364791882,1749241918996,-593.39,0.00030191,5]
[364791883,1749241919006,-1741.06,0.00030191,5]
[364791884,1749241919015,-480.0,0.00030191,5]
[364791885,1749241919025,-1207.6,0.00030191,5]
[364791886,1749241919037,-594.77974881,0.00030191,5]
[364791887,1749241919046,-526.84,0.00030191,5]
[364791888,1749241919055,-625.4,0.00030191,5]
[364791889,1749241919066,-776.39,0.00030191,5]
[364791890,1749241919076,-1627.41,0.00030191,5]
[364791891,1749241919085,-959.5,0.00030191,5]
[364791892,1749241919094,-3166.58,0.00030191,5]
[364791893,1749241919103,-480.0,0.00030191,5]
[364791894,1749241919113,-1176.26,0.00030191,5]
[364791895,1749241919123,-1451.66,0.00030191,5]
[364791896,1749241919132,-480.0,0.00030191,5]
[364791897,1749241919142,-7319.26,0.00030191,5]
[364791898,1749241919151,-15228.1,0.00030191,5]
[364791899,1749241919160,-480.0,0.00030191,5]
[364791900,1749241919170,-3041.7,0.00030191,5]
[364791901,1749241919179,-649.3,0.00030191,5]
[364791902,1749241919189,-480.0,0.00030191,5]
[364791903,1749241919198,-585.28,0.00030191,5]
[364791904,1749241919207,-11478.06,0.00030191,5]
[364791905,1749241919217,-1727.03,0.00030191,5]
[364791906,1749241919226,-1130.77,0.00030191,5]
[364791907,1749241919235,-7297.24,0.00030191,5]
[364791908,1749241919244,-480.0,0.00030191,5]
[364791909,1749241919253,-1673.57,0.00030191,5]
[364791910,1749241919263,-1724.44,0.00030191,5]
[364791911,1749241919272,-605.57,0.00030191,5]
[364791912,1749241919282,-2022.54,0.00030191,5]
[364791913,1749241919291,-1496.76,0.00030191,5]
[364791914,1749241919301,-616.43,0.00030191,5]
[364791915,1749241919310,-1644.54,0.00030191,5]
[364791916,1749241919319,-3349.68,0.00030191,5]
[364791917,1749241919329,-584.83,0.00030191,5]
[364791918,1749241919339,-624.52,0.00030191,5]
[364791919,1749241919348,-1651.89,0.00030191,5]
[364791920,1749241919358,-869.35,0.00030191,5]
[364791921,1749241919367,-567.05,0.00030191,5]
[364791922,1749241919377,-718.31,0.00030191,5]
[364791923,1749241919386,-593.22,0.00030191,5]
[364791924,1749241919396,-724.33,0.00030191,5]
[364791925,1749241919406,-1529.35,0.00030191,5]
[364791926,1749241919415,-586.21,0.00030191,5]
[364791927,1749241919424,-618.5,0.00030191,5]
[364791928,1749241919433,-645.12,0.00030191,5]
[364791929,1749241919442,-1029.88,0.00030191,5]
[364791930,1749241919451,-856.04,0.00030191,5]
[364791931,1749241919460,-1316.83,0.00030191,5]
[364791932,1749241919469,-1219.25,0.00030191,5]
[364791933,1749241919479,-937.26,0.00030191,5]
[364791934,1749241919488,-2376.4,0.00030191,5]
[364791935,1749241919497,-480.0,0.00030191,2]
[364791936,1749241919506,-481.35,0.00030191,5]
[364791937,1749241919516,-1691.35,0.00030191,5]
[364791938,1749241919526,-150.0,0.00030198,7]
[364791939,1749241919535,-122141.82,0.000302,7]
[364791940,1749241919545,-1743.79,0.000302,2]
[364791941,1749241919554,-2099.41868,0.000302,2]
[364791942,1749241919563,-255.59327405,0.00030202,7]
[364791943,1749241919573,-326.78703344,0.00030202,7]
[364791944,1749241919583,-150.0,0.00030218,7]
[364791945,1749241919592,-150.0,0.00030218,7]
[364791946,1749241919603,-150.0,0.00030218,7]
[364791947,1749241919612,-150.0,0.00030218,7]
[364791948,1749241919622,-150.0,0.00030218,7]
[364791949,1749241919632,-150.0,0.00030218,7]
[364791950,1749241919642,-150.0,0.00030218,7]
[364791951,1749241919651,-255.59327405,0.00030234,7]
[364791952,1749241919661,-326.78703344,0.00030234,7]
[364791953,1749241919671,-150.0,0.00030237,7]
[364791954,1749241919681,-150.0,0.00030254,7]
[364791955,1749241919690,-255.59327405,0.00030266,7]
[364791956,1749241919699,-326.78703344,0.00030266,7]
[364791957,1749241919708,-500.0,0.0003027,2]
[364791958,1749241919718,-700.0,0.0003027,2]
[364791959,1749241919727,-150.0,0.00030272,7]
[364791960,1749241919736,-155.6039419,0.00030274,30]
[364791961,1749241919745,-155.6039419,0.00030274,30]
[364791962,1749241919755,-150.0,0.00030275,7]
[364791963,1749241919765,-150.0,0.00030287,7]
[364791964,1749241919774,-150.0,0.0003029,7]
[364791965,1749241919784,-255.59327405,0.00030298,7]
[364791966,1749241919795,-326.78703344,0.00030298,7]
[364791967,1749241919804,-387.0,0.000303,2]
[364791968,1749241919814,-210.0,0.000303,2]
[364791969,1749241919823,-212.0,0.000303,30]
[364791970,1749241919833,-207.0,0.000303,2]
[364791971,1749241919842,-1000.0,0.00030301,2]
[364791972,1749241919851,-164.12,0.00030311,2]
[364791973,1749241919861,-163.22,0.00030311,2]
[364791974,1749241919870,-326.44,0.00030311,2]
[364791975,1749241919880,-163.22,0.00030311,2]
[364791976,1749241919891,-163.22,0.00030311,2]
[364791977,1749241919901,-150.0,0.00030313,7]
[364791978,1749241919910,-150.0,0.00030326,7]
[364791979,1749241919921,-150.0,0.00030327,7]
[364791980,1749241919931,-255.59327405,0.0003033,7]
[364791981,1749241919943,-326.78703344,0.0003033,7]
[364791982,1749241919954,-150.0,0.00030331,7]
[364791983,1749241919964,-150.0,0.00030349,7]
[364791984,1749241919974,-150.0,0.00030352,7]
[364791985,1749241919984,-150.0,0.00030356,7]
[364791986,1749241919994,-480.0,0.00030356,5]
[364791987,1749241920003,-480.0,0.00030356,5]
[364791988,1749241920013,-480.0,0.00030356,5]
[364791989,1749241920023,-480.0,0.00030356,5]
[364791990,1749241920033,-480.0,0.00030356,5]
[364791991,1749241920043,-1150.67,0.00030356,5]
[364791992,1749241920052,-849.58,0.00030356,5]
[364791993,1749241920063,-1762.69,0.00030356,5]
[364791994,1749241920072,-521.79,0.00030356,5]
[364791995,1749241920081,-480.0,0.00030356,5]
[364791996,1749241920091,-480.0,0.00030356,5]
[364791997,1749241920100,-1155.6,0.00030356,5]
[364791998,1749241920109,-480.0,0.00030356,5]
[364791999,1749241920119,-1160.86,0.00030356,5]
[364792000,1749241920128,-519.58,0.00030356,5]
[364792001,1749241920137,-552.94,0.00030356,5]
[364792002,1749241920147,-950.71,0.00030356,5]
[364792003,1749241920157,-675.25,0.00030356,5]
[364792004,1749241920166,-885.57,0.00030356,5]
[364792005,1749241920176,-666.72,0.00030356,5]
[364792006,1749241920185,-1073.7,0.00030356,5]
[364792007,1749241920195,-519.6,0.00030356,5]
[364792008,1749241920204,-511.45,0.00030356,5]
[364792009,1749241920214,-499.44,0.00030356,5]
[364792010,1749241920223,-803.55,0.00030356,5]
[364792011,1749241920233,-579.61,0.00030356,5]
[364792012,1749241920242,-883.54,0.00030356,5]
[364792013,1749241920252,-838.95,0.00030356,5]
[364792014,1749241920261,-480.0,0.00030356,5]
[364792015,1749241920271,-732.08,0.00030356,5]
[364792016,1749241920281,-646.34,0.00030356,5]
[364792017,1749241920290,-480.0,0.00030356,5]
[364792018,1749241920300,-574.86,0.00030356,5]
[364792019,1749241920309,-518.75,0.00030356,5]
[364792020,1749241920319,-951.19,0.00030356,5]
[364792021,1749241920329,-779.94,0.00030356,5]
[364792022,1749241920338,-689.83,0.00030356,5]
[364792023,1749241920347,-1012.85,0.00030356,5]
[364792024,1749241920357,-482.38,0.00030356,5]
[364792025,1749241920366,-713.99,0.00030356,5]
[364792026,1749241920377,-480.0,0.00030356,5]
[364792027,1749241920387,-549.54,0.00030356,5]
[364792028,1749241920398,-891.22,0.00030356,5]
[364792029,1749241920407,-1010.55,0.00030356,5]
[364792030,1749241920417,-154.27313477,0.00030356,5]
[364792031,1749241920427,-580.5,0.00030356,5]
[364792032,1749241920437,-480.0,0.00030356,5]
[364792033,1749241920447,-787.11,0.00030356,5]
[364792034,1749241920457,-801.53,0.00030356,5]
[364792035,1749241920467,-547.92,0.00030356,5]
[364792036,1749241920477,-788.62,0.00030356,5]
[364792037,1749241920487,-823.95,0.00030356,5]
[364792038,1749241920496,-540.55,0.00030356,5]
[364792039,1749241920506,-1667.28,0.00030356,5]
[364792040,1749241920515,-708.27,0.00030356,5]
[364792041,1749241920525,-815.35,0.00030356,5]
[364792042,1749241920535,-1322.04,0.00030356,5]
[364792043,1749241920544,-788.51,0.00030356,5]
[364792044,1749241920553,-1588.19,0.00030356,5]
[364792045,1749241920563,-894.23,0.00030356,5]
[364792046,1749241920572,-627.73,0.00030356,5]
[364792047,1749241920582,-493.66,0.00030356,5]
[364792048,1749241920591,-907.31,0.00030356,5]
[364792049,1749241920600,-543.94,0.00030356,5]
[364792050,1749241920610,-674.10436928,0.00030356,5]
[364792051,1749241921924,-189.35028877,0.000199,2]
[364792052,1749241921934,-3169.97834095,0.000213,2]
[364792053,1749241921975,-8.65710292,0.000213,2]
[364792054,1749241921990,-4798.87035591,0.000213,2]
[364792055,1749241922000,-17945.75970419,0.00024107,2]
[364792056,1749241922010,-151.0,0.00026095,7]
[364792057,1749241922019,-151.0,0.00026095,7]
[364792058,1749241922030,-484.36215884,0.00027397,5]
[364792059,1749241922040,-676.24,0.00027397,5]
[364792060,1749241922049,-480.0,0.00027397,5]
[364792061,1749241922059,-480.0,0.00027397,5]
[364792062,1749241922069,-480.0,0.00027397,5]
[364792063,1749241922079,-480.0,0.00027397,5]
[364792064,1749241922088,-480.0,0.00027397,5]
[364792065,1749241922099,-480.0,0.00027397,5]
[364792066,1749241922109,-151.0,0.00027397,7]
[364792067,1749241922119,-151.0,0.00027397,7]
[364792068,1749241922130,-480.0,0.00027397,5]
[364792069,1749241922139,-540.0,0.00027397,2]
[364792070,1749241922149,-480.0,0.00027397,5]
[364792071,1749241922158,-1125.49,0.00027561,5]
[364792072,1749241922168,-676.24,0.00027561,5]
[364792073,1749241922177,-480.0,0.00027561,5]
[364792074,1749241922187,-480.0,0.00027561,5]
[364792075,1749241922197,-480.0,0.00027561,5]
[364792076,1749241922207,-480.0,0.00027561,5]
[364792077,1749241922218,-151.0,0.00027561,7]
[364792078,1749241922228,-480.0,0.00027561,5]
[364792079,1749241922238,-480.0,0.00027561,5]
[364792080,1749241922247,-151.0,0.00027593,7]
[364792081,1749241922257,-480.0,0.00027726,2]
[364792082,1749241922267,-1125.49,0.00027726,5]
[364792083,1749241922277,-676.24,0.00027726,5]
[364792084,1749241922287,-480.0,0.00027726,5]
[364792085,1749241922297,-480.0,0.00027726,5]
[364792086,1749241922306,-537.84,0.00027726,5]
[364792087,1749241922316,-151.0,0.00027726,7]
[364792088,1749241922326,-480.0,0.00027726,5]
[364792089,1749241922335,-480.0,0.00027726,5]
[364792090,1749241922344,-218.46,0.0002789,2]
[364792091,1749241922355,-1125.49,0.0002789,5]
[364792092,1749241922364,-480.0,0.0002789,5]
[364792093,1749241922374,-676.24,0.0002789,5]
[364792094,1749241922384,-480.0,0.0002789,5]
[364792095,1749241922394,-151.0,0.0002789,7]
[364792096,1749241922404,-480.0,0.0002789,5]
[364792097,1749241922414,-480.0,0.0002789,5]
[364792098,1749241922424,-151.0,0.00028,7]
[364792099,1749241922434,-1125.49,0.00028054,5]
[364792100,1749241922443,-480.0,0.00028054,5]
[364792101,1749241922453,-676.24,0.00028054,5]
[364792102,1749241922463,-480.0,0.00028054,5]
[364792103,1749241922473,-452.09,0.00028054,5]
[364792104,1749241922483,-151.0,0.00028054,7]
[364792105,1749241922492,-1125.49,0.00028219,5]
[364792106,1749241922503,-480.0,0.00028219,5]
[364792107,1749241922514,-676.24,0.00028219,5]
[364792108,1749241922524,-480.0,0.00028219,5]
[364792109,1749241922534,-151.0,0.00028219,7]
[364792110,1749241922543,-1125.49,0.00028383,5]
[364792111,1749241922552,-480.0,0.00028383,5]
[364792112,1749241922562,-676.24,0.00028383,5]
[364792113,1749241922571,-349.23,0.00028383,5]
[364792114,1749241922581,-340.76778106,0.00028547,5]
[364792115,1749241922606,-151.0,0.00027397,7]
[364792116,1749241922616,-480.0,0.00028054,5]
[364792117,1749241922626,-245.51098299,0.00028547,5]
[364792118,1749241924149,1535.0,0.0003561,120]
[364792119,1749241924677,3000.0,0.00035616,120]
[364792120,1749241925431,174.24,0.00013699,2]
[364792121,1749241926327,150.0,0.000356,120]
[364792122,1749241930799,1060.0,0.00035616,120]
[364792123,1749241932142,250.0,0.00015068,2]
[364792124,1749241934230,150.0,0.000356,120]
[364792125,1749241947838,200.0,0.0003561,120]
[364792126,1749241950064,157.6,0.00035616,120]
[364792127,1749241954447,200.0,0.0003561,120]
[364792128,1749241995677,150.0,0.000356,120]
[364792129,1749242013707,200.0,0.0003,120]
[364792130,1749242057143,150.0,0.000356,120]
[364792134,1749242118485,150.0,0.000356,120]
[364792135,1749242169299,200.0,0.00029,120]
[364792136,1749242179924,150.0,0.000356,120]
[364792137,1749242196082,200.0,0.00031,120]
[364792138,1749242205971,200.0,0.00033,120]
[364792140,1749242217410,200.0,0.00032,120]
[364792141,1749242228336,215.26233,7.945e-05,2]
[364792142,1749242230719,200.0,0.00034,120]
[364792143,1749242241263,150.0,0.000356,120]
[364792146,1749242302632,150.0,0.000356,120]
[364792147,1749242310378,200.0,0.0003,120]
[364792148,1749242364184,150.0,0.000356,120]
[364792149,1749242399093,189.0,0.00032,120]
[364792150,1749242425532,150.0,0.000356,120]
[364792151,1749242464335,250.0,0.00019,2]
[364792152,1749242487576,150.0,0.000356,120]
[364792153,1749242509536,200.0,0.00035616,120]
[364792155,1749242548952,150.0,0.000356,120]
[364792156,1749242580075,161.21774843,0.000355,120]
[364792157,1749242600788,1558.16,0.00024831,120]
[364792158,1749242600986,1558.16,0.00027935,120]
[364792159,1749242601471,1558.16,0.00031039,120]
[364792160,1749242601599,1558.16,0.00034143,120]
[364792161,1749242610308,150.0,0.000356,120]
[364792162,1749242618316,2062.0,0.00035616,120]
[364792163,1749242655260,300.0,0.00033904,120]
[364792164,1749242671853,150.0,0.000356,120]
[364792165,1749242671885,500.0,0.00034,120]
[364792166,1749242703925,500.0,0.00035,120]
[364792167,1749242721242,200.7280971,0.00035616,120]
[364792168,1749242733219,150.0,0.000356,120]
[364792169,1749242747818,500.0,0.00035,120]
[364792170,1749242766068,1500.0,0.00024731,120]
[364792171,1749242773344,400.0,0.00035,120]
[364792172,1749242794673,150.0,0.000356,120]
[364792187,1749242856687,150.0,0.000356,120]
[364792188,1749242890287,150.0,1e-08,2]
[364792189,1749242918901,150.0,0.000356,120]
[364792190,1749242946266,2000.0,0.00024643,120]
[364792191,1749242948322,5692.681046,7.945e-05,2]
[364792192,1749242980459,150.0,0.000356,120]
[364792193,1749243031951,-181.07,0.00019999,2]
[364792194,1749243031963,-174.24,0.00020187,2]
[364792195,1749243031975,-114.061,0.00021369,2]
[364792196,1749243031988,-67.009,0.00021369,2]
[364792197,1749243031999,-229.39064857,0.00021714,2]
[364792198,1749243032019,-12.65644187,0.00021714,2]
[364792199,1749243032030,-181.07,0.00022739,2]
[364792200,1749243032043,-1178.28,0.00022956,2]
[364792201,1749243032056,-181.07,0.00024109,2]
[364792202,1749243032067,-329.0,0.00024733,2]
[364792203,1749243032078,-300.0,0.00024765,2]
[364792204,1749243032089,-1200.0,0.00024765,2]
[364792205,1749243032099,-200.0,0.00024765,10]
[364792206,1749243032108,-300.0,0.00024766,2]
[364792207,1749243032118,-6544.91833211,0.00024766,2]
[364792208,1749243032130,-683.87721242,0.00024767,2]
[364792209,1749243032144,-1204.16977347,0.00024767,2]
[364792210,1749243032167,-5363.81628104,0.00024767,2]
[364792211,1749243032180,-548.47686346,0.00024767,2]
[364792212,1749243032193,-2846.19006919,0.00024767,2]
[364792213,1749243032207,-598.65469487,0.00024767,2]
[364792214,1749243032220,-11760.26009861,0.00024767,2]
[364792215,1749243032235,-268.61,0.00024767,2]
[364792216,1749243032248,-1069.85932377,0.00024767,2]
[364792217,1749243032262,-12739.07568317,0.00024767,2]
[364792218,1749243032272,-2259.95046181,0.00024805,2]
[364792219,1749243032284,-1500.0,0.00024806,2]
[364792220,1749243032296,-175.58,0.00024822,2]
[364792221,1749243032308,-250.0,0.00024836,2]
[364792222,1749243032319,-1000.0,0.00024843,2]
[364792223,1749243032330,-501.35969813,0.0002485,2]
[364792224,1749243032341,-1783.54,0.0002486,2]
[364792225,1749243032352,-1051.79,0.00024862,2]
[364792227,1749243032363,-300.0,0.00024863,2]
[364792229,1749243032373,-150.0,0.00024864,2]
[364792231,1749243032384,-1048.26,0.00024864,2]
[364792234,1749243032395,-882.95418716,0.0002488,2]
[364792236,1749243032408,-1864.56664616,0.0002488,2]
[364792239,1749243032423,-269.652,0.0002488,2]
[364792241,1749243032436,-718.30226286,0.0002488,2]
[364792244,1749243032449,-20960.88892239,0.0002488,2]
[364792248,1749243032475,-586.9083617,0.0002488,2]
[364792513,1749243035120,352.0,0.00035616,120]
[364792814,1749243037986,-1284.49380121,0.00020087,2]
[364792816,1749243037999,-1799.94227,0.00020087,2]
[364792820,1749243038020,-936.56392879,0.00020087,2]
[364792822,1749243038030,-1201.35747681,0.0002488,2]
[364792825,1749243038050,-15465.96014292,0.0002488,2]
[364792827,1749243038061,-500.0,0.00024886,2]
[364792829,1749243038075,-163.84,0.00024894,2]
[364792831,1749243038085,-831.67147707,0.000249,12]
[364792834,1749243038097,-500.0,0.000249,2]
[364792836,1749243038107,-1709.18,0.00024906,2]
[364792838,1749243038118,-1000.0,0.00024929,2]
[364792840,1749243038128,-162.0,0.00025,7]
[364792842,1749243038138,-200.0,0.00025027,2]
[364792844,1749243038149,-1053.66920631,0.00025094,2]
[364792846,1749243038161,-166.18,0.00025097,2]
[364792848,1749243038172,-12810.6980614,0.0002513,2]
[364792863,1749243038311,-645.947327,0.0002513,2]
[364792866,1749243038324,-8353.39018978,0.0002513,2]
[364792915,1749243040495,-2089.96442182,0.0002513,2]
[364792916,1749243040504,-150.0,0.00025186,7]
[364792917,1749243040514,-1178.28,0.0002522,2]
[364792918,1749243040523,-161.39,0.00025246,2]
[364792919,1749243040533,-1000.0,0.00025251,2]
[364792921,1749243040543,-7296.06,0.00025279,2]
[364792923,1749243040552,-347.34,0.00025417,30]
[364792925,1749243040561,-831.67147688,0.00025417,13]
[364792927,1749243040572,-171.1,0.00025463,2]
[364792929,1749243040582,-181.07,0.00025479,2]
[364792930,1749243040591,-271.17,0.00025537,2]
[364792933,1749243040600,-1078.0,0.00025555,2]
[364792934,1749243040609,-831.67147688,0.00025934,14]
[364792937,1749243040619,-166.5,0.00025952,2]
[364792939,1749243040629,-151.0,0.00026095,7]
[364792940,1749243040638,-151.0,0.00026095,7]
[364792942,1749243040647,-151.0,0.00026095,7]
[364792945,1749243040657,-151.0,0.00026095,7]
[364792946,1749243040666,-159.51,0.0002623,2]
[364792947,1749243040675,-268.61,0.0002643,3]
[364792948,1749243040684,-6900.16005361,0.0002644,2]
[364792949,1749243040694,-831.67147688,0.00026452,15]
[364792950,1749243040703,-271.17,0.00026495,2]
[364792951,1749243040712,-1000.0,0.0002654,2]
[364792952,1749243040722,-151.0,0.0002654,2]
[364792953,1749243040731,-500.0,0.0002654,2]
[364792954,1749243040740,-151.0,0.0002654,2]
[364792955,1749243040750,-500.0,0.0002654,2]
[364792956,1749243040761,-500.0,0.0002654,2]
[364792957,1749243040771,-500.0,0.0002654,2]
[364792958,1749243040781,-500.0,0.0002654,2]
[364792959,1749243040791,-500.0,0.0002654,2]
[364792960,1749243040800,-500.0,0.0002654,2]
[364792961,1749243040809,-500.0,0.0002654,2]
[364792962,1749243040819,-500.0,0.0002654,2]
[364792963,1749243040828,-500.0,0.0002654,2]
[364792964,1749243040838,-500.0,0.0002654,2]
[364792965,1749243040847,-500.0,0.0002654,2]
[364792966,1749243040856,-500.0,0.0002654,2]
[364792967,1749243040865,-500.0,0.0002654,2]
[364792968,1749243040874,-500.0,0.0002654,2]
[364792969,1749243040884,-207.4,0.0002654,2]
[364792970,1749243040894,-166.18,0.00026665,2]
[364792971,1749243040904,-174.24,0.00026676,2]
[364792972,1749243040913,-6900.16005353,0.00026822,2]
[364792973,1749243040922,-420.0,0.00026835,2]
[364792974,1749243040931,-181.07,0.00026849,2]
[364792975,1749243040939,-420.0,0.00026939,2]
[364792976,1749243040949,-1680.0,0.00026957,2]
[364792977,1749243040958,-831.67147688,0.00026969,16]
[364792978,1749243040967,-152.0,0.00027082,3]
[364792979,1749243040976,-424.7809,0.00027187,2]
[364792980,1749243040985,-2500.0,0.00027187,2]
[364792981,1749243040995,-182.38312279,0.00027187,2]
[364792982,1749243041005,-7178.30388173,0.00027197,2]
[364792983,1749243041015,-165.68150263,0.00027197,2]
[364792984,1749243041025,-6900.16005353,0.00027204,2]
[364792985,1749243041034,-69751.0161878,0.00027287,2]
[364792986,1749243041043,-2583.37096992,0.0002729,2]
[364792987,1749243041052,-152.7,0.00027296,2]
[364792988,1749243041061,-152.7,0.00027296,2]
[364792989,1749243041071,-152.7,0.00027296,2]
[364792990,1749243041080,-152.7,0.00027296,2]
[364792991,1749243041090,-152.7,0.00027296,2]
[364792992,1749243041099,-152.7,0.00027296,2]
[364792993,1749243041109,-152.7,0.00027296,2]
[364792994,1749243041118,-500.0,0.00027297,2]
[364792995,1749243041127,-36058.946,0.00027297,2]
[364792996,1749243041135,-187582.5771,0.00027297,2]
[364792997,1749243041145,-1000.0,0.00027297,2]
[364792998,1749243041154,-5000.0,0.00027297,2]
[364792999,1749243041166,-161.86322054,0.00027297,2]
[364793000,1749243041175,-4500.0,0.000273,2]
[364793001,1749243041186,-2583.37096992,0.00027363,2]
[364793002,1749243041195,-23250.3387293,0.00027367,2]
[364793003,1749243041205,-521.72942323,0.00027373,2]
[364793004,1749243041214,-500.0,0.00027373,2]
[364793005,1749243041223,-500.0,0.00027373,2]
[364793006,1749243041233,-640.1051399,0.00027373,2]